bitfinex/quotes_ETHUSD_20250213
["timestamp","ask_amount","ask_price","bid_price","bid_amount"]
[1739471150997,0.7924,2633.8,2633.3,3.79747]
[1739471151299,0.291,2633.7,2633.3,3.79747]
[1739471151460,4.08804,2633.7,2633.2,3.0]
[1739471151663,3.79733,2633.5,2633.0,3.0]
[1739471151894,0.291,2633.4,2633.0,6.79788]
[1739471152099,3.7976,2633.3,2632.7,4.55389]
[1739471152266,4.5962,2633.3,2632.9,3.79808]
[1739471152596,0.12836804,2633.2,2633.0,3.0]
[1739471152961,0.7986,2633.3,2633.0,6.79785]
[1739471153167,0.12836804,2633.1,2633.0,6.79785]
[1739471153387,0.7986,2633.3,2632.9,6.79806]
[1739471153597,0.12836804,2633.1,2633.0,3.79792]
[1739471153799,0.7986,2633.3,2633.1,3.79777]
[1739471155165,0.7986,2633.3,2633.0,3.79792]
[1739471155583,1.287297,2633.3,2633.0,3.79792]
[1739471155906,0.7986,2633.3,2633.1,3.7977]
[1739471156054,0.7986,2633.3,2633.1,3.79769]
[1739471156409,0.7986,2633.3,2633.0,3.0]
[1739471156753,0.7986,2633.3,2633.0,3.79787]
[1739471157295,4.59618,2633.3,2632.9,3.0]
[1739471157501,0.9159343,2633.2,2632.8,3.0]
[1739471157656,0.9159343,2633.2,2632.6,3.0]
[1739471157657,3.7979,2633.1,2632.6,3.0]
[1739471157859,3.7979,2633.1,2632.6,6.79838]
[1739471158363,3.7979,2633.1,2632.8,3.0]
[1739471158567,4.59619,2633.3,2632.8,3.79813]
[1739471158880,4.59619,2633.3,2632.2,3.57843596]
[1739471158881,3.79903,2632.3,2631.7,4.61182]
[1739471159040,0.291,2632.3,2631.7,4.61182]
[1739471159582,3.79933,2632.1,2631.4,0.7709]
[1739471159784,3.79941,2632.0,2631.4,0.7709]
[1739471159943,3.79941,2632.0,2631.4,4.30302813]
[1739471159944,0.12796756,2632.0,2631.4,4.30302813]
[1739471160144,0.12796756,2632.0,2631.9,3.79953]
[1739471160478,0.291,2632.3,2631.8,3.79967]
[1739471160691,7.56e-06,2632.0,2631.9,6.82815296]
[1739471160977,0.291,2632.6,2632.3,3.0]
[1739471161473,0.123185,2632.5,2632.3,3.0]
[1739471161681,0.123185,2632.5,2632.3,3.79894]
[1739471161864,0.123185,2632.5,2632.4,6.79881]
[1739471162947,0.7746,2632.9,2632.5,6.79866]
[1739471163340,4.5727,2632.9,2632.4,3.0]
[1739471163542,3.84582117,2632.8,2632.4,3.0]
[1739471163771,3.79845,2632.7,2632.2,3.0]
[1739471163928,3.79838,2632.7,2632.2,7.85882]
[1739471164529,3.79839,2632.7,2632.4,3.0]
[1739471164732,6.08161,2632.6,2631.9,4.62963]
[1739471165030,0.8107,2632.4,2631.6,3.7938]
[1739471165378,3.79847,2632.7,2632.2,6.79907]
[1739471165530,3.0881,2632.8,2632.3,3.79883]
[1739471165531,0.8051,2632.8,2632.3,3.79883]
[1739471165730,0.8051,2632.8,2632.2,7.55329]
[1739471165985,4.89434,2632.8,2632.3,3.79893]
[1739471167134,1.0961,2632.8,2632.2,3.7542]
[1739471167475,4.89435,2632.8,2632.3,3.79894]
[1739471167628,4.89435,2632.8,2632.2,4.509538]
[1739471167828,4.89435,2632.8,2632.3,3.79888]
[1739471168030,1.0961,2632.8,2632.4,3.79877]
[1739471168343,0.12267822,2632.7,2632.4,3.79877]
[1739471168550,1.0961,2632.8,2632.4,4.7095018]
[1739471168746,0.12267822,2632.6,2632.5,3.79855]
[1739471168930,1.0961,2632.8,2632.5,3.79867]
[1739471169131,0.12267822,2632.7,2632.6,3.79852]
[1739471169373,0.291,2633.0,2632.6,3.79844]
[1739471169583,0.291,2633.0,2632.5,3.0]
[1739471169584,0.12286625,2632.7,2632.5,3.0]
[1739471169782,3.79816,2632.9,2632.5,3.77094118]
[1739471170078,0.12286625,2632.6,2632.5,7.56960118]
[1739471170284,0.291,2633.0,2632.5,3.77094118]
[1739471170505,3.79816,2632.9,2632.5,3.0]
[1739471170712,3.921108,2632.9,2632.5,3.0]
[1739471171183,3.921108,2632.9,2632.5,6.79864]
[1739471171346,3.921108,2632.9,2632.2,4.55318]
[1739471171547,7.719298,2632.9,2632.4,6.79878]
[1739471171888,0.122948,2632.9,2632.2,0.7542]
[1739471172091,0.122948,2632.9,2632.5,3.79855]
[1739471172390,3.921098,2632.9,2632.4,6.79874]
[1739471173088,3.921098,2632.9,2632.5,3.79865]
[1739471173392,0.122948,2632.9,2632.4,6.79881]
[1739471173686,0.122948,2632.9,2632.5,3.79853]
[1739471173857,0.122948,2632.9,2632.3,0.37542]
[1739471173858,0.122948,2632.9,2632.6,3.79845]
[1739471174387,3.921108,2632.9,2632.5,3.79865]
[1739471174589,0.122948,2632.9,2632.5,3.79865]
[1739471174890,3.921098,2632.9,2632.4,6.79879]
[1739471175055,3.79848,2632.7,2632.3,0.37542]
[1739471175387,3.92148625,2632.6,2632.2,7.55329]
[1739471175689,3.79877,2632.5,2631.9,3.7995]
[1739471175835,3.92142625,2632.6,2632.0,3.0]
[1739471176039,0.7538,2632.8,2632.2,3.0]
[1739471176239,0.291,2632.8,2632.6,3.79846]
[1739471176452,0.291,2632.8,2632.7,6.79838]
[1739471176682,0.757,2633.1,2632.8,3.79813]
[1739471176864,0.291,2633.3,2632.9,3.79798]
[1739471177068,0.291,2633.3,2632.5,3.0]
[1739471177276,0.291,2633.3,2633.0,3.79784]
[1739471177588,0.291,2633.3,2633.1,3.7978]
[1739471177899,5.7197913,2633.8,2633.1,3.7978]
[1739471177900,0.7546,2634.0,2633.2,0.02857666]
[1739471178059,0.55,2634.1,2633.8,3.79676]
[1739471178265,0.55,2634.1,2633.9,3.0]
[1739471178940,0.55,2634.1,2633.8,3.0]
[1739471179354,0.55,2634.1,2633.8,6.79678]
[1739471179588,0.55,2634.1,2633.8,3.0]
[1739471179790,0.55,2634.1,2633.8,6.79677]
[1739471179955,0.55,2634.1,2633.9,3.79665]
[1739471180161,0.55,2634.1,2634.0,6.7965]
[1739471182149,0.67274363,2634.1,2634.0,6.7965]
[1739471182366,0.55,2634.1,2634.0,6.7965]
[1739471182577,0.55,2634.1,2634.0,7.5866]
[1739471182788,0.55,2634.1,2634.0,9.26311271]
[1739471183204,0.55,2634.1,2634.0,9.81311271]
[1739471184479,0.55,2634.1,2634.0,9.26311271]
[1739471184893,0.55,2634.1,2634.0,9.81311271]
[1739471186021,1e-05,2634.1,2634.0,9.82061271]
[1739471186312,1e-05,2634.1,2634.0,9.82811271]
[1739471187492,1e-05,2634.1,2634.0,10.79043754]
[1739471188459,1.0882,2635.7,2635.3,3.79449]
[1739471188740,1.0882,2635.7,2635.4,3.79442]
[1739471188886,0.1242796,2635.6,2635.5,3.79434]
[1739471189084,0.1242796,2635.6,2635.5,3.0]
[1739471189318,0.1242796,2635.6,2635.5,6.79434]
[1739471189532,0.1242796,2635.6,2635.5,3.0]
[1739471189902,0.62491956,2635.6,2635.0,3.79499]
[1739471190100,4.41919956,2635.6,2635.1,6.7949]
[1739471190409,0.62491956,2635.6,2635.3,3.7946]
[1739471190610,0.1242796,2635.6,2635.3,7.58913]
[1739471190935,3.9185296,2635.6,2635.1,3.7949]
[1739471191231,3.79438,2635.5,2635.1,3.0]
[1739471191382,0.1242796,2635.6,2635.1,3.0]
[1739471191733,3.79433,2635.6,2635.1,3.0]
[1739471191889,3.9186296,2635.5,2635.1,3.0]
[1739471192096,0.1242796,2635.5,2634.8,0.55]
[1739471192295,0.7972,2635.7,2635.5,6.79433]
[1739471192530,0.1242796,2635.6,2635.4,6.79447]
[1739471192713,0.1242796,2635.6,2635.5,3.79434]
[1739471193043,0.435223,2635.9,2635.5,3.79434]
[1739471193444,0.12650931,2635.8,2635.4,6.79447]
[1739471193658,0.12650931,2635.8,2635.4,3.0]
[1739471193804,0.12650931,2635.8,2635.4,6.79448]
[1739471194002,3.92042931,2635.8,2635.4,6.79448]
[1739471194214,0.12650931,2635.8,2635.4,3.0]
[1739471194413,3.92043931,2635.8,2635.4,3.0]
[1739471194615,0.43556623,2635.7,2635.4,6.79442]
[1739471194924,0.12659905,2635.6,2635.4,3.0]
[1739471195434,0.12659905,2635.6,2634.9,0.761]
[1739471195600,0.8171,2635.5,2634.6,3.79552]
[1739471195800,3.79503,2635.1,2634.6,3.79552]
[1739471196041,0.7524,2634.9,2634.4,3.79581]
[1739471196252,4.54769,2634.9,2634.4,3.79581]
[1739471196549,4.54769,2634.9,2634.0,3.79641]
[1739471196550,0.17383437,2634.8,2634.0,3.79641]
[1739471196849,3.96926437,2634.8,2633.9,0.8077]
[1739471197003,3.79581,2634.5,2634.0,3.79648]
[1739471197204,3.79581,2634.5,2634.1,3.0]
[1739471197619,0.1258319,2634.4,2634.1,3.0]
[1739471197899,3.79572,2634.6,2634.1,3.0]
[1739471198259,4.66424334,2634.6,2634.1,6.79625]
[1739471198430,0.12584004,2634.5,2634.2,3.79621]
[1739471198750,0.12584004,2634.5,2634.1,6.79635]
[1739471199443,3.92165004,2634.5,2634.1,3.0]
[1739471199795,0.12584004,2634.5,2633.7,0.55]
[1739471199995,0.12584004,2634.5,2634.1,6.79623]
[1739471200352,3.92169004,2634.5,2634.1,3.0]
[1739471200648,0.12584004,2634.5,2633.6,0.7948]
[1739471200828,0.12584004,2634.5,2634.1,3.79631]
[1739471200829,0.7573,2634.4,2634.1,3.79631]
[1739471201213,0.12568491,2634.3,2634.1,7.59258]
[1739471201449,0.12568491,2634.3,2634.1,3.79627]
[1739471201743,0.12568491,2634.3,2634.2,3.79621]
[1739471201942,0.12568491,2634.3,2634.1,3.79627]
[1739471202152,0.291,2634.4,2634.0,3.0]
[1739471202359,0.7702,2634.1,2633.8,3.0]
[1739471202539,0.7702,2634.1,2633.7,3.79685]
[1739471202720,0.12567675,2634.0,2633.7,3.79685]
[1739471203116,0.12567675,2634.0,2633.3,0.776]
[1739471203428,0.12567675,2634.0,2633.7,3.79686]
[1739471203643,0.12567675,2634.0,2633.9,3.79665]
[1739471204031,3.79609,2634.3,2633.9,3.79665]
[1739471204358,3.79646,2634.1,2633.6,6.797]
[1739471204555,0.7879,2633.9,2633.3,4.43871666]
[1739471204713,3.79688,2633.8,2633.3,4.43871666]
[1739471204910,0.7879,2633.9,2633.4,3.0]
[1739471205142,0.12541543,2633.7,2633.6,3.79708]
[1739471205311,0.7879,2633.9,2633.7,3.79686]
[1739471205509,0.7879,2633.9,2633.0,0.8117]
[1739471205510,0.7879,2633.9,2633.3,3.0]
[1739471205711,0.291,2633.8,2633.6,3.8113]
[1739471205941,0.291,2633.8,2633.7,3.79693]
[1739471206267,0.291,2633.8,2633.7,6.79693]
[1739471207336,0.7881,2634.6,2634.1,3.79636]
[1739471207551,0.27881,2634.5,2634.1,3.79636]
[1739471207757,4.58374,2634.6,2634.1,3.79636]
[1739471207758,0.291,2634.4,2634.1,3.79636]
[1739471208066,0.291,2634.4,2634.0,3.0]
[1739471208255,0.291,2634.4,2634.0,6.79644]
[1739471208448,0.291,2634.4,2634.0,3.0]
[1739471208648,0.291,2634.4,2634.1,3.79636]
[1739471208849,4.58374,2634.6,2634.3,3.79604]
[1739471208850,0.7881,2634.6,2634.3,3.79604]
[1739471209162,0.291,2634.5,2634.2,3.0]
[1739471209535,0.291,2634.5,2634.0,3.0]
[1739471209854,0.291,2634.5,2634.3,3.79606]
[1739471210073,0.291,2634.5,2634.3,7.59204]
[1739471210275,0.291,2634.5,2634.4,3.79593]
[1739471210780,0.291,2634.5,2634.3,3.79598]
[1739471211081,0.291,2634.6,2634.4,7.59174]
[1739471211371,0.291,2634.6,2634.5,3.79578]
[1739471211926,0.41626031,2634.6,2634.5,3.79578]
[1739471212174,0.291,2634.7,2634.6,3.79564]
[1739471212471,0.41626031,2634.7,2634.6,3.79564]
[1739471213021,0.41626031,2634.7,2634.5,3.79578]
[1739471213352,0.41626031,2634.7,2634.5,3.0]
[1739471213875,0.41626031,2634.7,2634.6,3.79564]
[1739471214583,0.41626031,2634.7,2634.6,7.85478]
[1739471214584,0.12526031,2634.7,2634.6,7.85478]
[1739471214995,0.291,2634.9,2634.8,3.79535]
[1739471215791,0.291,2635.2,2634.8,3.79535]
[1739471215933,0.291,2635.2,2634.9,3.79519]
[1739471216138,4.5603,2635.5,2634.9,3.79519]
[1739471216333,3.79469,2635.3,2634.9,3.0]
[1739471216989,4.08557,2635.4,2634.9,3.79513]
[1739471217197,0.291,2635.3,2634.8,6.79535]
[1739471217486,4.08575,2635.3,2634.8,3.0]
[1739471217635,4.08566,2635.3,2634.8,3.79526]
[1739471217957,7.88037,2635.3,2634.8,3.79526]
[1739471218386,3.79477,2635.2,2634.7,0.8068]
[1739471218586,3.79477,2635.2,2634.8,3.79533]
[1739471218789,3.79505,2635.1,2634.7,1.672947]
[1739471219471,3.79535,2634.8,2634.4,3.79584]
[1739471219656,3.79532,2634.9,2634.3,3.79605]
[1739471219861,3.79532,2634.9,2634.4,3.79592]
[1739471220372,2.8193,2635.0,2634.5,6.79571]
[1739471220373,0.8193,2635.0,2634.5,6.79571]
[1739471220571,0.8193,2635.0,2634.0,0.7644]
[1739471220572,3.79563,2634.7,2634.0,0.7644]
[1739471220899,3.79539,2634.8,2634.3,3.79595]
[1739471221086,0.8193,2635.0,2634.5,3.79578]
[1739471221292,0.8193,2635.0,2634.5,3.79571]
[1739471221440,0.8193,2635.0,2634.2,3.0]
[1739471221788,0.8193,2635.0,2634.7,3.79541]
[1739471221940,0.8193,2635.0,2634.5,3.79568]
[1739471222167,0.8193,2635.0,2634.4,3.79592]
[1739471222349,2.8193,2635.0,2634.4,3.0]
[1739471222589,3.79549,2634.8,2634.4,3.0]
[1739471222743,2.283,2634.9,2634.3,3.0]
[1739471223089,3.79602,2634.4,2634.1,3.0]
[1739471223292,7.59203,2634.4,2633.9,6.79657]
[1739471223454,4.08701,2634.4,2633.9,6.79657]
[1739471223790,0.8039,2634.2,2633.9,3.7965]
[1739471224085,0.8039,2634.2,2633.9,3.79665]
[1739471224240,0.8039,2634.2,2634.0,6.79648]
[1739471224675,0.8039,2634.2,2634.1,3.0]
[1739471224895,0.8039,2634.2,2633.6,3.79701]
[1739471224896,4.60011,2634.2,2633.6,3.79701]
[1739471225186,0.8039,2634.2,2633.9,3.79664]
[1739471226221,0.8039,2634.2,2633.8,3.0]
[1739471226381,0.291,2634.4,2633.8,3.79679]
[1739471226581,0.291,2634.4,2634.0,7.59293]
[1739471226880,2.574,2634.4,2633.9,3.0]
[1739471227246,3.7963,2634.2,2633.7,3.79685]
[1739471227532,0.7542,2634.0,2633.6,0.489621]
[1739471227830,0.7542,2634.0,2633.6,3.489621]
[1739471227994,0.12579913,2633.9,2633.6,3.489621]
[1739471228335,0.12579913,2633.9,2633.8,3.0]
[1739471228556,0.12579913,2633.9,2633.6,7.286651]
[1739471228703,2.40879913,2633.9,2633.2,0.7929]
[1739471228877,3.79767,2633.2,2632.7,3.79828]
[1739471229083,3.79766,2633.2,2632.7,3.79836]
[1739471229301,0.12494182,2633.1,2632.8,3.460766]
[1739471229494,3.79766,2633.2,2632.8,3.460766]
[1739471229698,0.12455787,2633.0,2632.8,3.460766]
[1739471229898,4.08861,2633.3,2632.8,3.460766]
[1739471230233,0.12455787,2632.9,2632.8,7.258996]
[1739471230534,0.291,2633.3,2633.1,6.7978]
[1739471230535,0.12455787,2633.2,2633.1,6.7978]
[1739471230691,0.291,2633.3,2633.2,6.79766]
[1739471230887,0.291,2633.3,2633.2,3.0]
[1739471231087,0.291,2633.3,2633.2,6.79766]
[1739471231288,1.0629,2633.6,2633.4,3.79737]
[1739471231601,0.291,2633.6,2633.3,3.7975]
[1739471232211,0.291,2633.6,2633.2,3.0]
[1739471232407,0.291,2633.6,2633.3,0.4059571]
[1739471232616,0.291,2633.6,2633.3,3.79747]
[1739471232946,1.52899065,2634.2,2633.7,3.7969]
[1739471233241,0.291,2634.0,2633.9,3.0]
[1739471233539,0.291,2634.0,2633.9,3.79665]
[1739471233793,0.291,2634.0,2633.9,4.476315]
[1739471234173,0.291,2634.0,2633.9,0.679665]
[1739471234341,0.291,2634.0,2633.9,3.0]
[1739471234956,0.291,2634.0,2633.9,6.79665]
[1739471235353,3.79596,2634.4,2633.9,6.79665]
[1739471235354,4.0872,2634.3,2633.9,3.0]
[1739471236089,0.291,2634.3,2633.9,6.79664]
[1739471236589,4.08715,2634.3,2633.9,3.0]
[1739471237291,0.291,2634.2,2633.9,3.0]
[1739471237662,0.291,2634.2,2633.9,3.67967]
[1739471237881,0.7883,2634.5,2634.2,3.79613]
[1739471238204,0.291,2634.4,2634.3,3.79594]
[1739471238352,3.79535,2634.8,2634.3,3.79594]
[1739471238700,4.08657,2634.7,2634.2,3.79612]
[1739471238878,4.08657,2634.7,2634.2,4.175732]
[1739471239062,3.79565,2634.6,2634.2,0.379612]
[1739471239263,2.7829,2634.9,2633.9,1.43397]
[1739471239463,2.7829,2634.9,2633.8,6.79667]
[1739471239464,0.7615,2634.4,2634.0,3.79636]
[1739471239667,0.7615,2634.4,2634.1,3.0]
[1739471239887,4.55744,2634.4,2633.7,3.79683]
[1739471240151,3.7962,2634.3,2633.7,3.79683]
[1739471240350,3.79637,2634.1,2633.6,7.59978]
[1739471240557,3.79657,2634.0,2633.6,3.0]
[1739471240866,3.79651,2634.0,2633.6,6.79708]
[1739471241089,3.79631,2634.2,2633.6,10.59405]
[1739471241305,3.79642,2634.1,2633.6,6.79697]
[1739471241486,3.79659,2634.0,2633.6,3.0]
[1739471241667,2.283,2633.9,2633.6,3.0]
[1739471241862,3.79642,2634.1,2633.5,3.79718]
[1739471241863,6.07942,2634.1,2633.5,3.0]
[1739471242099,9.87589,2634.1,2633.6,3.79706]
[1739471242467,3.92108702,2634.0,2633.5,6.7972]
[1739471242914,3.79702,2633.7,2633.2,7.59506]
[1739471243123,3.79702,2633.7,2633.3,3.0]
[1739471243422,0.12442716,2633.6,2633.2,6.79764]
[1739471243724,0.41542716,2633.6,2633.2,6.79765]
[1739471244083,4.21253716,2633.6,2633.2,3.0]
[1739471244284,4.21253716,2633.6,2633.1,3.79779]
[1739471244483,0.41542716,2633.6,2633.3,3.79748]
[1739471244683,0.41542716,2633.6,2633.4,3.79736]
[1739471245017,0.41542716,2633.6,2633.3,3.79748]
[1739471245219,0.12442716,2633.6,2633.5,6.79722]
[1739471245602,0.291,2633.8,2633.6,3.79695]
[1739471245926,0.291,2633.8,2633.5,6.79722]
[1739471246126,0.291,2633.8,2633.6,3.79704]
[1739471246329,0.291,2633.8,2633.7,6.79693]
[1739471246542,0.291,2634.1,2634.0,3.7965]
[1739471246840,0.8267,2634.4,2634.0,3.7965]
[1739471247021,4.08709,2634.3,2633.8,3.0]
[1739471247226,3.84379618,2634.2,2633.7,3.0]
[1739471247528,4.0871,2634.3,2633.8,6.79678]
[1739471248095,0.291,2634.3,2633.4,3.0]
[1739471248301,0.291,2634.3,2633.9,3.79655]
[1739471248514,4.08717,2634.3,2633.8,6.79678]
[1739471248740,3.79634,2634.2,2633.8,3.0]
[1739471248945,4.08714,2634.3,2633.8,6.79678]
[1739471250286,0.291,2634.3,2634.0,3.7965]
[1739471250423,4.55262,2634.7,2634.2,3.79614]
[1739471250622,0.291,2634.6,2634.3,3.79604]
[1739471250878,0.7727,2634.9,2634.0,3.0]
[1739471251041,0.291,2634.8,2634.2,3.0]
[1739471251372,0.291,2634.8,2634.5,3.0]
[1739471251574,0.291,2634.8,2634.5,3.79577]
[1739471252784,0.8244,2635.2,2634.7,3.79548]
[1739471252925,0.8244,2635.2,2634.9,3.79511]
[1739471253124,3.79443,2635.5,2634.9,4.174621]
[1739471253125,0.291,2635.4,2634.9,4.174621]
[1739471253376,4.0855,2635.4,2634.9,4.174621]
[1739471253740,0.12442716,2635.3,2634.9,4.174621]
[1739471253942,0.12442716,2635.3,2635.0,3.79495]
[1739471254275,0.12442716,2635.3,2635.1,3.79481]
[1739471254482,0.12442716,2635.3,2634.9,7.174711]
[1739471254777,0.12442716,2635.3,2635.0,3.79505]
[1739471255127,0.12442716,2635.3,2635.1,3.79486]
[1739471255333,0.12442716,2635.3,2635.2,3.79477]
[1739471255535,0.12442716,2635.3,2635.2,6.79477]
[1739471255770,0.291,2635.6,2635.3,3.0]
[1739471256138,0.12442716,2635.5,2635.3,6.7945]
[1739471256591,0.12442716,2635.5,2635.3,3.0]
[1739471256788,3.91878716,2635.5,2635.1,1.9214421]
[1739471256998,3.91878716,2635.5,2635.1,3.8245]
[1739471257176,3.91878716,2635.5,2635.1,7.61941]
[1739471257344,0.12442716,2635.5,2635.1,7.61941]
[1739471257778,0.12442716,2635.5,2635.2,6.79476]
[1739471258053,0.12442716,2635.5,2635.3,3.0]
[1739471258391,0.12442716,2635.5,2635.1,4.61941]
[1739471258555,0.12442716,2635.5,2635.2,3.0]
[1739471259947,0.12442716,2635.5,2635.2,6.79476]
[1739471260197,3.79452,2635.4,2635.0,3.0]
[1739471260368,3.96629106,2635.5,2635.0,6.79505]
[1739471260547,0.12721118,2635.3,2635.0,6.79505]
[1739471260747,3.84186327,2635.5,2635.0,7.9742451]
[1739471260996,0.12721118,2635.2,2635.0,6.79505]
[1739471261149,3.84185363,2635.5,2635.0,6.79505]
[1739471261501,7.63630363,2635.5,2635.0,6.79505]
[1739471261646,0.12721118,2635.4,2635.0,6.79505]
[1739471261844,3.92174118,2635.4,2635.0,3.0]
[1739471262050,4.62273,2635.3,2634.9,3.7952]
[1739471262399,0.95516431,2635.3,2634.8,6.79533]
[1739471262563,0.12706431,2635.3,2635.0,3.79505]
[1739471262769,0.12706431,2635.3,2635.2,6.79477]
[1739471263097,1.0835,2635.6,2635.0,3.8236]
[1739471263098,0.291,2635.6,2635.4,3.79439]
[1739471263294,3.79407,2635.7,2635.2,3.79469]
[1739471263497,0.291,2635.5,2635.3,3.0]
[1739471264579,0.291,2635.5,2635.2,3.0]
[1739471264917,4.08534,2635.5,2635.2,3.0]
[1739471265435,0.291,2635.5,2635.2,3.0]
[1739471265795,0.291,2635.5,2635.2,6.79476]
[1739471265994,0.291,2635.5,2635.3,3.79462]
[1739471266342,0.291,2635.5,2635.4,3.79449]
[1739471266508,0.291,2635.5,2635.3,6.79462]
[1739471267440,0.291,2635.5,2635.2,10.58932]
[1739471267653,2.936723,2635.9,2635.5,3.79434]
[1739471267654,0.291,2635.6,2635.5,3.79434]
[1739471268138,0.291,2635.6,2635.4,3.79448]
[1739471268308,0.291,2635.6,2635.2,7.853572]
[1739471268810,0.291,2635.6,2635.3,3.79462]
[1739471269441,0.291,2635.6,2635.2,4.853632]
[1739471269607,3.79437,2635.5,2635.1,6.79491]
[1739471269792,3.79437,2635.5,2634.9,3.79515]
[1739471269793,3.79469,2635.3,2634.9,3.79515]
[1739471270198,3.7945,2635.4,2634.9,3.79521]
[1739471270394,0.7833,2635.5,2634.9,3.79513]
[1739471270609,0.7833,2635.5,2635.1,3.79491]
[1739471270817,0.7833,2635.5,2635.3,3.79461]
[1739471271094,0.7833,2635.5,2635.0,3.79494]
[1739471271300,0.83073126,2635.5,2635.0,3.79493]
[1739471271511,4.62519126,2635.5,2635.0,3.0]
[1739471271718,3.79456,2635.4,2635.0,6.79504]
[1739471271917,7.58914,2635.4,2635.0,3.0]
[1739471272150,3.79469,2635.3,2634.9,3.0]
[1739471272328,3.79456,2635.4,2634.9,3.79509]
[1739471272646,0.12716224,2635.2,2634.9,3.79509]
[1739471272843,3.79466,2635.3,2634.9,3.79509]
[1739471273050,0.12716224,2635.1,2634.9,3.79509]
[1739471273254,5.26938913,2635.5,2635.0,3.0]
[1739471273540,3.79465,2635.3,2635.0,3.0]
[1739471273745,3.79478,2635.2,2635.0,3.0]
[1739471273941,3.79492,2635.1,2635.0,3.0]
[1739471274127,3.79492,2635.1,2634.6,3.79558]
[1739471274295,3.79502,2635.1,2634.6,4.633939]
[1739471274495,3.79502,2635.1,2634.6,8.429499]
[1739471274849,3.7947,2635.3,2634.8,3.0]
[1739471275029,0.291,2635.2,2635.1,3.79483]
[1739471275809,0.291,2635.2,2634.8,3.0]
[1739471275810,0.7833,2635.5,2635.2,3.79474]
[1739471276010,0.291,2635.4,2635.3,3.79455]
[1739471276241,0.291,2635.4,2635.0,3.0]
[1739471277059,3.79463,2635.3,2634.9,6.79519]
[1739471277255,4.0855,2635.4,2634.9,6.79519]
[1739471277408,0.291,2635.4,2635.0,3.79504]
[1739471277609,0.291,2635.4,2635.0,3.79497]
[1739471277820,4.08554,2635.4,2635.0,3.79497]
[1739471279221,0.291,2635.4,2634.6,1.601159]
[1739471279427,4.0855,2635.4,2634.9,3.79507]
[1739471279745,0.291,2635.4,2635.0,3.79506]
[1739471279929,0.291,2635.4,2635.1,3.7949]
[1739471280129,4.08549,2635.4,2635.0,6.79506]
[1739471280457,3.79479,2635.2,2634.8,3.79531]
[1739471280657,3.79479,2635.2,2634.8,3.0]
[1739471280879,3.79465,2635.3,2634.8,6.79523]
[1739471281389,6.08557,2635.4,2634.5,3.79578]
[1739471281390,6.08551,2635.4,2634.5,3.79578]
[1739471281677,2.291,2635.4,2635.1,3.79491]
[1739471281879,0.291,2635.3,2634.8,3.0]
[1739471282046,0.291,2635.3,2634.9,5.245168]
[1739471282247,0.291,2635.3,2634.9,1.450048]
[1739471282539,0.291,2635.3,2635.2,3.79477]
[1739471283280,0.7833,2635.5,2635.2,3.79477]
[1739471283501,0.291,2635.4,2635.2,3.79477]
[1739471283785,0.291,2635.5,2635.3,3.79463]
[1739471284019,0.7513,2635.8,2635.3,4.55357]
[1739471284185,0.291,2635.5,2635.3,4.55357]
[1739471284540,0.291,2635.5,2635.3,3.79463]
[1739471284951,0.291,2635.5,2635.4,3.79449]
[1739471285150,0.291,2635.5,2635.4,3.0]
[1739471286556,0.291,2635.5,2635.4,6.79449]
[1739471287285,0.291,2635.5,2635.4,3.0]
[1739471287482,0.41816222,2635.5,2635.4,3.0]
[1739471287781,0.41816222,2635.5,2635.4,6.79449]
[1739471288200,0.12716222,2635.5,2635.4,6.79449]
[1739471288399,0.12716222,2635.5,2635.4,8.67559611]
[1739471288559,0.144223,2635.9,2635.7,3.79405]
[1739471288763,0.144223,2635.9,2635.8,3.79391]
[1739471289214,0.144223,2635.9,2635.6,3.79411]
[1739471289411,0.144223,2635.9,2635.7,3.79399]
[1739471289598,0.144223,2635.9,2635.8,3.79391]
[1739471290413,0.144223,2635.9,2635.8,6.82239471]
[1739471290559,0.144223,2635.9,2635.8,7.60271]
[1739471294189,0.27189906,2635.9,2635.8,7.60271]
[1739471294538,0.144223,2635.9,2635.8,9.20013232]
[1739471294835,0.27189906,2635.9,2635.8,9.20013232]
[1739471295037,0.27189906,2635.9,2635.8,3.79391]
[1739471295242,0.27189906,2635.9,2635.6,3.79412]
[1739471295440,0.27189906,2635.9,2635.8,3.0]
[1739471295934,0.27189906,2635.9,2635.8,6.79391]
[1739471296549,0.144223,2635.9,2635.8,6.79391]
[1739471296842,0.144223,2635.9,2635.8,8.22398318]
[1739471297199,0.27224994,2635.9,2635.8,8.22398318]
[1739471297748,0.27224994,2635.9,2635.8,3.0]
[1739471297965,0.27224994,2635.9,2635.5,6.79428]
[1739471298254,4.82943994,2635.9,2635.4,3.79449]
[1739471298552,3.79406,2635.7,2635.3,3.79461]
[1739471298848,0.12806772,2635.8,2635.4,6.7944]
[1739471299066,4.701303,2635.9,2635.3,3.0]
[1739471299067,0.907523,2635.9,2635.3,3.0]
[1739471299224,0.12806772,2635.7,2635.6,6.7942]
[1739471299426,0.144223,2635.9,2635.7,6.79393]
[1739471299839,0.144223,2635.9,2635.7,3.0]
[1739471300028,0.144223,2635.9,2635.6,3.0]
[1739471300223,0.144223,2635.9,2635.6,6.7941]